[Event "Titled Tuesday Blitz May 30 Late 2023"]
[White "Rottenwohrer Suarez, Juan"]
[Black "Fuentes Godoy, Lilia Ivonne"]
[WhiteFideId "32068182"]
[BlackFideId "5104130"]
[WhiteElo "2174"]
[BlackElo "2096"]
[Result "1-0"]
[Round "06"]
[TimeControl "180+2"]
[Date "2023.05.31"]
[WhiteClock "0:00:23"]
[BlackClock "0:00:04"]

1. d4 {[%clk 0:02:59]}  d5 {[%clk 0:03:00]} 2. c4 {[%clk 0:03:00]}  e6 {[%clk 0:03:00]} 3. Nc3 {[%clk 0:03:01]}  c6 {[%clk 0:02:59]} 4. e3 {[%clk 0:02:55]}  f5 {[%clk 0:02:59]} 5. Nf3 {[%clk 0:02:50]}  Nf6 {[%clk 0:03:00]} 6. a4 {[%clk 0:02:49]}  Bd6 {[%clk 0:02:57]} 7. b3 {[%clk 0:02:50]}  Qe7 {[%clk 0:02:57]} 8. Nb1 {[%clk 0:02:49]}  O-O {[%clk 0:02:57]} 9. Ba3 {[%clk 0:02:49]}  Bb4+ {[%clk 0:02:53]} 10. Bxb4 {[%clk 0:02:45]}  Qxb4+ {[%clk 0:02:53]} 11. Nbd2 {[%clk 0:02:43]}  Ne4 {[%clk 0:02:52]} 12. Qc2 {[%clk 0:02:38]}  Nd7 {[%clk 0:02:34]} 13. Be2 {[%clk 0:02:32]}  e5 {[%clk 0:02:05]} 14. cxd5 {[%clk 0:02:11]}  Nxd2 {[%clk 0:01:59]} 15. Qxd2 {[%clk 0:02:01]}  Qxb3 {[%clk 0:01:59]} 16. dxc6 {[%clk 0:01:55]}  bxc6 {[%clk 0:02:00]} 17. O-O {[%clk 0:01:54]}  e4 {[%clk 0:01:59]} 18. Rfc1 {[%clk 0:01:43]}  Kh8 {[%clk 0:01:36]} 19. Bc4 {[%clk 0:01:37]}  Qb7 {[%clk 0:01:35]} 20. Rab1 {[%clk 0:01:31]}  Qc7 {[%clk 0:01:31]} 21. Ng5 {[%clk 0:01:32]}  Nb6 {[%clk 0:01:30]} 22. Ba2 {[%clk 0:00:44]}  h6 {[%clk 0:01:29]} 23. Qd1 {[%clk 0:00:41]}  Qe7 {[%clk 0:01:17]} 24. Nh3 {[%clk 0:00:40]}  Bd7 {[%clk 0:00:39]} 25. a5 {[%clk 0:00:38]}  Nd5 {[%clk 0:00:39]} 26. Bxd5 {[%clk 0:00:35]}  cxd5 {[%clk 0:00:40]} 27. Nf4 {[%clk 0:00:35]}  Qg5 {[%clk 0:00:27]} 28. h4 {[%clk 0:00:33]}  Qf6 {[%clk 0:00:20]} 29. Rc7 {[%clk 0:00:32]}  Be8 {[%clk 0:00:18]} 30. Rbb7 {[%clk 0:00:29]}  Rf7 {[%clk 0:00:17]} 31. Nxd5 {[%clk 0:00:25]}  Qe6 {[%clk 0:00:04]} 32. Nf4 {[%clk 0:00:24]}  Qd6 {[%clk 0:00:04]} 33. Rxf7 {[%clk 0:00:23]} 1-0


[Site "https://www.chess.com"]

[Event "Titled Tuesday Blitz May 30 Late 2023"]
[White "Curtis, John"]
[Black "Goncalves, Davi Sulzbacher"]
[WhiteFideId "3200256"]
[BlackFideId "2154510"]
[WhiteElo "2203"]
[BlackElo "2182"]
[Result "0-1"]
[Round "06"]
[TimeControl "180+2"]
[Date "2023.05.31"]
[WhiteClock "0:00:01"]
[BlackClock "0:00:05"]

1. e4 {[%clk 0:02:59]}  c6 {[%clk 0:02:26]} 2. d4 {[%clk 0:02:57]}  d5 {[%clk 0:02:20]} 3. exd5 {[%clk 0:02:58]}  cxd5 {[%clk 0:02:20]} 4. c4 {[%clk 0:02:58]}  Nf6 {[%clk 0:02:20]} 5. Nc3 {[%clk 0:02:58]}  g6 {[%clk 0:02:19]} 6. Nf3 {[%clk 0:02:57]}  Bg7 {[%clk 0:02:18]} 7. c5 {[%clk 0:02:21]}  O-O {[%clk 0:02:16]} 8. Bf4 {[%clk 0:02:06]}  Nc6 {[%clk 0:02:00]} 9. h3 {[%clk 0:02:00]}  Ne4 {[%clk 0:01:46]} 10. Rc1 {[%clk 0:01:47]}  Re8 {[%clk 0:01:10]} 11. Bb5 {[%clk 0:01:43]}  e5 {[%clk 0:00:48]} 12. dxe5 {[%clk 0:01:19]}  Nxc3 {[%clk 0:00:32]} 13. bxc3 {[%clk 0:01:07]}  Qa5 {[%clk 0:00:32]} 14. Bxc6 {[%clk 0:01:06]}  bxc6 {[%clk 0:00:31]} 15. O-O {[%clk 0:01:03]}  Ba6 {[%clk 0:00:29]} 16. Re1 {[%clk 0:01:02]}  Qxc5 {[%clk 0:00:22]} 17. Qd2 {[%clk 0:00:52]}  Bc4 {[%clk 0:00:20]} 18. Bh6 {[%clk 0:00:36]}  Bh8 {[%clk 0:00:20]} 19. Bg5 {[%clk 0:00:20]}  Re6 {[%clk 0:00:10]} 20. Bf4 {[%clk 0:00:14]}  Rae8 {[%clk 0:00:09]} 21. Nd4 {[%clk 0:00:14]}  R6e7 {[%clk 0:00:09]} 22. Nb3 {[%clk 0:00:14]}  Qb6 {[%clk 0:00:08]} 23. Be3 {[%clk 0:00:14]}  Qc7 {[%clk 0:00:06]} 24. f4 {[%clk 0:00:14]}  f6 {[%clk 0:00:06]} 25. exf6 {[%clk 0:00:13]}  Bxf6 {[%clk 0:00:06]} 26. Bd4 {[%clk 0:00:12]}  Re2 {[%clk 0:00:05]} 27. Rxe2 {[%clk 0:00:12]}  Rxe2 {[%clk 0:00:06]} 28. Qd1 {[%clk 0:00:11]}  Qxf4 {[%clk 0:00:06]} 29. Qf1 {[%clk 0:00:08]}  Bxd4+ {[%clk 0:00:03]} 30. Nxd4 {[%clk 0:00:07]}  Rf2 {[%clk 0:00:04]} 31. Qxf2 {[%clk 0:00:07]}  Qxc1+ {[%clk 0:00:04]} 32. Kh2 {[%clk 0:00:07]}  Qxc3 {[%clk 0:00:04]} 33. Ne6 {[%clk 0:00:07]}  Qe5+ {[%clk 0:00:04]} 34. Qf4 {[%clk 0:00:01]}  Qxe6 {[%clk 0:00:04]} 35. Qb8+ {[%clk 0:00:01]}  Kg7 {[%clk 0:00:05]} 36. Qxa7+ {[%clk 0:00:01]}  Qf7 {[%clk 0:00:05]} 37. Qd4+ {[%clk 0:00:01]}  Qf6 {[%clk 0:00:05]} 0-1


[Site "https://www.chess.com"]

[Event "Titled Tuesday Blitz May 30 Late 2023"]
[White "Wizard_of_Odds"]
[Black "Prieto Aranguren, Alain"]
[BlackFideId "2268906"]
[WhiteElo "2424"]
[BlackElo "2209"]
[Result "1-0"]
[Round "06"]
[TimeControl "180+2"]
[Date "2023.05.31"]
[WhiteClock "0:00:04"]
[BlackClock "0:00:03"]

1. d4 {[%clk 0:02:57]}  Nf6 {[%clk 0:02:20]} 2. Nf3 {[%clk 0:02:55]}  g6 {[%clk 0:02:19]} 3. b3 {[%clk 0:02:50]}  Bg7 {[%clk 0:02:20]} 4. Bb2 {[%clk 0:02:50]}  O-O {[%clk 0:02:20]} 5. Nbd2 {[%clk 0:02:49]}  c5 {[%clk 0:02:20]} 6. dxc5 {[%clk 0:02:49]}  Na6 {[%clk 0:02:17]} 7. Bd4 {[%clk 0:02:35]}  Qc7 {[%clk 0:02:12]} 8. e4 {[%clk 0:02:21]}  Nxc5 {[%clk 0:02:06]} 9. Bd3 {[%clk 0:02:12]}  d6 {[%clk 0:02:04]} 10. O-O {[%clk 0:02:08]}  Bd7 {[%clk 0:02:01]} 11. Re1 {[%clk 0:02:04]}  Rac8 {[%clk 0:02:01]} 12. Bf1 {[%clk 0:01:59]}  Bc6 {[%clk 0:01:55]} 13. e5 {[%clk 0:01:53]}  Ng4 {[%clk 0:01:55]} 14. exd6 {[%clk 0:01:48]}  Qxd6 {[%clk 0:01:54]} 15. Nc4 {[%clk 0:01:36]}  Qb8 {[%clk 0:01:42]} 16. Nfe5 {[%clk 0:01:19]}  Nxe5 {[%clk 0:01:32]} 17. Nxe5 {[%clk 0:01:18]}  Rfd8 {[%clk 0:01:21]} 18. Qg4 {[%clk 0:01:06]}  Ne6 {[%clk 0:01:12]} 19. Nxc6 {[%clk 0:01:04]}  Rxc6 {[%clk 0:01:04]} 20. Bxg7 {[%clk 0:01:00]}  Kxg7 {[%clk 0:00:57]} 21. c4 {[%clk 0:00:58]}  Rcd6 {[%clk 0:00:56]} 22. g3 {[%clk 0:00:54]}  Rd2 {[%clk 0:00:53]} 23. Rxe6 {[%clk 0:00:45]}  fxe6 {[%clk 0:00:53]} 24. Qxe6 {[%clk 0:00:46]}  Qd6 {[%clk 0:00:52]} 25. Qe3 {[%clk 0:00:43]}  Qf6 {[%clk 0:00:46]} 26. Re1 {[%clk 0:00:38]}  R8d7 {[%clk 0:00:39]} 27. Bh3 {[%clk 0:00:37]}  R7d6 {[%clk 0:00:18]} 28. Qxe7+ {[%clk 0:00:36]}  Qxe7 {[%clk 0:00:19]} 29. Rxe7+ {[%clk 0:00:37]}  Kf6 {[%clk 0:00:19]} 30. Rxb7 {[%clk 0:00:31]}  Rxa2 {[%clk 0:00:18]} 31. Rd7 {[%clk 0:00:29]}  Rxd7 {[%clk 0:00:15]} 32. Bxd7 {[%clk 0:00:30]}  a5 {[%clk 0:00:15]} 33. Kg2 {[%clk 0:00:25]}  Ke5 {[%clk 0:00:15]} 34. Kf3 {[%clk 0:00:23]}  Kd4 {[%clk 0:00:15]} 35. h4 {[%clk 0:00:12]}  Rb2 {[%clk 0:00:13]} 36. Ba4 {[%clk 0:00:11]}  Rd2 {[%clk 0:00:10]} 37. g4 {[%clk 0:00:10]}  Rb2 {[%clk 0:00:08]} 38. Kg3 {[%clk 0:00:08]}  Kc3 {[%clk 0:00:06]} 39. c5 {[%clk 0:00:08]}  Kb4 {[%clk 0:00:05]} 40. c6 {[%clk 0:00:08]}  Rc2 {[%clk 0:00:05]} 41. g5 {[%clk 0:00:05]}  Kc5 {[%clk 0:00:04]} 42. f4 {[%clk 0:00:04]}  Kd4 {[%clk 0:00:03]} 43. Kg4 {[%clk 0:00:04]} 1-0


[Site "https://www.chess.com"]

[Event "Titled Tuesday Blitz May 30 Late 2023"]
[White "micke12a"]
[Black "Kornyukov, Alexey"]
[BlackFideId "4150457"]
[WhiteElo "2395"]
[BlackElo "2352"]
[Result "1-0"]
[Round "06"]
[TimeControl "180+2"]
[Date "2023.05.31"]
[WhiteClock "0:01:30"]
[BlackClock "0:00:02"]

1. e4 {[%clk 0:03:00]}  c5 {[%clk 0:02:59]} 2. Nf3 {[%clk 0:03:00]}  Nc6 {[%clk 0:02:59]} 3. d4 {[%clk 0:03:00]}  cxd4 {[%clk 0:03:00]} 4. Nxd4 {[%clk 0:03:00]}  Nf6 {[%clk 0:03:01]} 5. Nc3 {[%clk 0:03:01]}  e5 {[%clk 0:03:01]} 6. Ndb5 {[%clk 0:03:00]}  d6 {[%clk 0:03:01]} 7. Bg5 {[%clk 0:03:01]}  a6 {[%clk 0:03:01]} 8. Na3 {[%clk 0:03:01]}  b5 {[%clk 0:03:02]} 9. Nd5 {[%clk 0:03:02]}  Be7 {[%clk 0:03:02]} 10. Bxf6 {[%clk 0:03:03]}  Bxf6 {[%clk 0:03:03]} 11. c4 {[%clk 0:03:03]}  bxc4 {[%clk 0:03:01]} 12. Nxc4 {[%clk 0:02:51]}  O-O {[%clk 0:03:00]} 13. Be2 {[%clk 0:02:50]}  Nd4 {[%clk 0:02:52]} 14. O-O {[%clk 0:02:47]}  Bb7 {[%clk 0:02:50]} 15. Nc3 {[%clk 0:02:44]}  Rc8 {[%clk 0:02:30]} 16. b3 {[%clk 0:02:43]}  Bg5 {[%clk 0:02:13]} 17. Bf3 {[%clk 0:02:39]}  f5 {[%clk 0:02:03]} 18. Nd5 {[%clk 0:02:31]}  Nxf3+ {[%clk 0:01:33]} 19. Qxf3 {[%clk 0:02:28]}  fxe4 {[%clk 0:01:17]} 20. Qxe4 {[%clk 0:02:26]}  Rf4 {[%clk 0:01:17]} 21. Nf6+ {[%clk 0:02:12]}  Bxf6 {[%clk 0:01:04]} 22. Qxb7 {[%clk 0:02:11]}  d5 {[%clk 0:01:05]} 23. Nb6 {[%clk 0:02:04]}  Rb8 {[%clk 0:00:21]} 24. Qxd5+ {[%clk 0:02:01]}  Qxd5 {[%clk 0:00:18]} 25. Nxd5 {[%clk 0:02:02]}  Rd4 {[%clk 0:00:18]} 26. Ne3 {[%clk 0:01:59]}  Kf7 {[%clk 0:00:15]} 27. Rac1 {[%clk 0:01:57]}  Rb7 {[%clk 0:00:13]} 28. Rc2 {[%clk 0:01:56]}  a5 {[%clk 0:00:13]} 29. Rc4 {[%clk 0:01:47]}  a4 {[%clk 0:00:13]} 30. bxa4 {[%clk 0:01:43]}  Ra7 {[%clk 0:00:08]} 31. Rfc1 {[%clk 0:01:33]}  Rxa4 {[%clk 0:00:06]} 32. Rxa4 {[%clk 0:01:32]}  Rxa4 {[%clk 0:00:06]} 33. Rc2 {[%clk 0:01:33]}  Ke6 {[%clk 0:00:04]} 34. g3 {[%clk 0:01:30]}  Bg5 {[%clk 0:00:02]} 35. Nc4 {[%clk 0:01:30]} 1-0


[Site "https://www.chess.com"]

[Event "Titled Tuesday Blitz May 30 Late 2023"]
[White "Torres Dominguez, David"]
[Black "K2JW"]
[WhiteFideId "2220857"]
[WhiteElo "1999"]
[BlackElo "2363"]
[Result "1-0"]
[Round "06"]
[TimeControl "180+2"]
[Date "2023.05.31"]
[WhiteClock "0:00:52"]
[BlackClock "0:00:09"]

1. e4 {[%clk 0:02:49]}  c5 {[%clk 0:03:00]} 2. Nc3 {[%clk 0:02:39]}  d6 {[%clk 0:02:59]} 3. Bb5+ {[%clk 0:02:38]}  Bd7 {[%clk 0:02:58]} 4. Bxd7+ {[%clk 0:02:36]}  Nxd7 {[%clk 0:02:51]} 5. Nf3 {[%clk 0:02:35]}  g6 {[%clk 0:02:49]} 6. d4 {[%clk 0:02:34]}  cxd4 {[%clk 0:02:46]} 7. Qxd4 {[%clk 0:02:31]}  Ngf6 {[%clk 0:02:46]} 8. O-O {[%clk 0:02:27]}  Bg7 {[%clk 0:02:38]} 9. a4 {[%clk 0:02:26]}  O-O {[%clk 0:02:36]} 10. h3 {[%clk 0:02:25]}  Nb6 {[%clk 0:02:10]} 11. Qb4 {[%clk 0:02:19]}  Qc7 {[%clk 0:00:57]} 12. a5 {[%clk 0:02:13]}  Qc4 {[%clk 0:00:54]} 13. Ra4 {[%clk 0:02:03]}  Qxb4 {[%clk 0:00:44]} 14. Rxb4 {[%clk 0:02:03]}  Nbd7 {[%clk 0:00:41]} 15. Rxb7 {[%clk 0:02:01]}  Rab8 {[%clk 0:00:39]} 16. Rxa7 {[%clk 0:01:54]}  Rfc8 {[%clk 0:00:36]} 17. Rd1 {[%clk 0:01:53]}  Kf8 {[%clk 0:00:32]} 18. g4 {[%clk 0:01:53]}  Nc5 {[%clk 0:00:27]} 19. Nd5 {[%clk 0:01:45]}  Nxd5 {[%clk 0:00:25]} 20. exd5 {[%clk 0:01:44]}  Bxb2 {[%clk 0:00:24]} 21. Bh6+ {[%clk 0:01:39]}  Ke8 {[%clk 0:00:22]} 22. Re1 {[%clk 0:01:34]}  Nd7 {[%clk 0:00:21]} 23. Bf4 {[%clk 0:01:29]}  Kd8 {[%clk 0:00:15]} 24. Ng5 {[%clk 0:01:23]}  Rxc2 {[%clk 0:00:10]} 25. Nxf7+ {[%clk 0:01:17]}  Kc8 {[%clk 0:00:10]} 26. Rxe7 {[%clk 0:01:10]}  Bd4 {[%clk 0:00:09]} 27. Re8# {[%clk 0:00:52]} 1-0


[Site "https://www.chess.com"]

[Event "Titled Tuesday Blitz May 30 Late 2023"]
[White "Womacka, Mathias"]
[Black "The_Straightforward_Rook"]
[WhiteFideId "4611390"]
[WhiteElo "2377"]
[BlackElo "2276"]
[Result "1-0"]
[Round "06"]
[TimeControl "180+2"]
[Date "2023.05.31"]
[WhiteClock "0:00:23"]
[BlackClock "0:00:32"]

1. e4 {[%clk 0:02:51]}  c5 {[%clk 0:02:46]} 2. Nf3 {[%clk 0:02:49]}  Nc6 {[%clk 0:02:46]} 3. d4 {[%clk 0:02:49]}  cxd4 {[%clk 0:02:47]} 4. Nxd4 {[%clk 0:02:49]}  e5 {[%clk 0:02:48]} 5. Nb5 {[%clk 0:02:48]}  d6 {[%clk 0:02:48]} 6. c4 {[%clk 0:02:47]}  Be7 {[%clk 0:02:46]} 7. N1c3 {[%clk 0:02:46]}  a6 {[%clk 0:02:46]} 8. Na3 {[%clk 0:02:47]}  f5 {[%clk 0:02:47]} 9. exf5 {[%clk 0:02:46]}  Bxf5 {[%clk 0:02:48]} 10. Bd3 {[%clk 0:02:46]}  Be6 {[%clk 0:02:48]} 11. O-O {[%clk 0:02:45]}  Nf6 {[%clk 0:02:49]} 12. Nc2 {[%clk 0:02:44]}  O-O {[%clk 0:02:49]} 13. Ne3 {[%clk 0:02:44]}  Kh8 {[%clk 0:02:47]} 14. Ne4 {[%clk 0:02:44]}  Nxe4 {[%clk 0:02:46]} 15. Bxe4 {[%clk 0:02:43]}  Qe8 {[%clk 0:02:44]} 16. Qd3 {[%clk 0:02:39]}  h6 {[%clk 0:02:41]} 17. Nd5 {[%clk 0:02:17]}  Bxd5 {[%clk 0:02:32]} 18. cxd5 {[%clk 0:02:02]}  Nd4 {[%clk 0:02:30]} 19. Be3 {[%clk 0:02:02]}  Bf6 {[%clk 0:02:18]} 20. Bxd4 {[%clk 0:01:36]}  exd4 {[%clk 0:02:19]} 21. g3 {[%clk 0:01:33]}  Rc8 {[%clk 0:02:17]} 22. Rfe1 {[%clk 0:01:26]}  Qb5 {[%clk 0:02:13]} 23. Qf3 {[%clk 0:01:12]}  Be5 {[%clk 0:02:10]} 24. Qg4 {[%clk 0:01:05]}  Kg8 {[%clk 0:01:22]} 25. Qe6+ {[%clk 0:01:00]}  Kh8 {[%clk 0:01:22]} 26. Qg6 {[%clk 0:01:00]}  Kg8 {[%clk 0:01:22]} 27. Qh7+ {[%clk 0:00:50]}  Kf7 {[%clk 0:01:22]} 28. Bg6+ {[%clk 0:00:50]}  Kf6 {[%clk 0:01:21]} 29. Bh5 {[%clk 0:00:50]}  Rce8 {[%clk 0:00:40]} 30. f4 {[%clk 0:00:43]}  Qxd5 {[%clk 0:00:29]} 31. Qg6+ {[%clk 0:00:36]}  Ke7 {[%clk 0:00:29]} 32. fxe5 {[%clk 0:00:29]}  dxe5 {[%clk 0:00:30]} 33. Qxg7+ {[%clk 0:00:26]}  Kd8 {[%clk 0:00:31]} 34. Bxe8 {[%clk 0:00:26]}  Rxe8 {[%clk 0:00:32]} 35. Rac1 {[%clk 0:00:23]} 1-0


[Site "https://www.chess.com"]

[Event "Titled Tuesday Blitz May 30 Late 2023"]
[White "KVAIDAN"]
[Black "Goffredo_Fofi"]
[WhiteElo "2285"]
[BlackElo "2448"]
[Result "0-1"]
[Round "06"]
[TimeControl "180+2"]
[Date "2023.05.31"]
[WhiteClock "0:00:23"]
[BlackClock "0:00:08"]

1. b3 {[%clk 0:03:00]}  g6 {[%clk 0:03:00]} 2. Bb2 {[%clk 0:03:00]}  Nf6 {[%clk 0:03:01]} 3. Bxf6 {[%clk 0:03:00]}  exf6 {[%clk 0:03:02]} 4. c4 {[%clk 0:03:00]}  d5 {[%clk 0:03:02]} 5. cxd5 {[%clk 0:02:59]}  Qxd5 {[%clk 0:03:03]} 6. Nc3 {[%clk 0:03:00]}  Qa5 {[%clk 0:03:04]} 7. a3 {[%clk 0:02:58]}  c6 {[%clk 0:02:55]} 8. g3 {[%clk 0:02:56]}  Be6 {[%clk 0:02:46]} 9. Bg2 {[%clk 0:02:55]}  Nd7 {[%clk 0:02:45]} 10. Nf3 {[%clk 0:02:53]}  Qh5 {[%clk 0:02:36]} 11. O-O {[%clk 0:02:54]}  Be7 {[%clk 0:02:29]} 12. Re1 {[%clk 0:02:46]}  O-O {[%clk 0:02:28]} 13. Nd4 {[%clk 0:02:44]}  Bh3 {[%clk 0:02:27]} 14. Bh1 {[%clk 0:02:43]}  Rad8 {[%clk 0:02:07]} 15. e3 {[%clk 0:02:41]}  Qxd1 {[%clk 0:02:05]} 16. Rexd1 {[%clk 0:02:40]}  Nc5 {[%clk 0:01:57]} 17. b4 {[%clk 0:02:35]}  Nd3 {[%clk 0:01:53]} 18. Nce2 {[%clk 0:02:33]}  Bg4 {[%clk 0:01:45]} 19. f3 {[%clk 0:02:33]}  Bc8 {[%clk 0:01:36]} 20. Nf4 {[%clk 0:02:32]}  Nxf4 {[%clk 0:01:33]} 21. gxf4 {[%clk 0:02:22]}  c5 {[%clk 0:01:33]} 22. bxc5 {[%clk 0:02:15]}  Bxc5 {[%clk 0:01:34]} 23. Nb3 {[%clk 0:02:13]}  Bb6 {[%clk 0:01:34]} 24. d4 {[%clk 0:02:13]}  Be6 {[%clk 0:01:31]} 25. Nd2 {[%clk 0:02:11]}  f5 {[%clk 0:01:25]} 26. a4 {[%clk 0:02:09]}  Ba5 {[%clk 0:01:24]} 27. Nf1 {[%clk 0:02:06]}  Rc8 {[%clk 0:01:22]} 28. e4 {[%clk 0:02:02]}  Rc3 {[%clk 0:01:02]} 29. d5 {[%clk 0:01:58]}  Bd7 {[%clk 0:01:01]} 30. e5 {[%clk 0:01:52]}  Rfc8 {[%clk 0:01:00]} 31. Bg2 {[%clk 0:01:49]}  R8c4 {[%clk 0:00:55]} 32. Ng3 {[%clk 0:01:47]}  Rc2 {[%clk 0:00:40]} 33. Rab1 {[%clk 0:01:39]}  Bb6+ {[%clk 0:00:35]} 34. Kh1 {[%clk 0:01:35]}  Bxa4 {[%clk 0:00:35]} 35. d6 {[%clk 0:01:33]}  Bd7 {[%clk 0:00:33]} 36. Bf1 {[%clk 0:01:27]}  Rxf4 {[%clk 0:00:29]} 37. Bb5 {[%clk 0:01:25]}  Bxb5 {[%clk 0:00:22]} 38. Rxb5 {[%clk 0:01:25]}  Rc8 {[%clk 0:00:22]} 39. Kg2 {[%clk 0:01:13]}  Rfc4 {[%clk 0:00:22]} 40. Rbd5 {[%clk 0:01:00]}  Rc2+ {[%clk 0:00:21]} 41. Kh3 {[%clk 0:01:01]}  Rd8 {[%clk 0:00:20]} 42. Nf1 {[%clk 0:01:00]}  Kf8 {[%clk 0:00:19]} 43. Nd2 {[%clk 0:01:00]}  Rc3 {[%clk 0:00:18]} 44. Kg2 {[%clk 0:01:00]}  Rc2 {[%clk 0:00:18]} 45. Kh3 {[%clk 0:00:59]}  Ke8 {[%clk 0:00:16]} 46. Nb3 {[%clk 0:00:53]}  Rc3 {[%clk 0:00:15]} 47. Na5 {[%clk 0:00:51]}  Bxa5 {[%clk 0:00:10]} 48. Rxa5 {[%clk 0:00:48]}  a6 {[%clk 0:00:10]} 49. Kg3 {[%clk 0:00:46]}  Kd7 {[%clk 0:00:10]} 50. Rb1 {[%clk 0:00:45]}  Kc8 {[%clk 0:00:08]} 51. h4 {[%clk 0:00:42]}  Rc6 {[%clk 0:00:08]} 52. Kf4 {[%clk 0:00:42]}  f6 {[%clk 0:00:07]} 53. Rd5 {[%clk 0:00:36]}  fxe5+ {[%clk 0:00:07]} 54. Kxe5 {[%clk 0:00:36]}  b5 {[%clk 0:00:05]} 55. Ke6 {[%clk 0:00:35]}  Re8+ {[%clk 0:00:04]} 56. Kf7 {[%clk 0:00:35]}  Kd7 {[%clk 0:00:04]} 57. Kg7 {[%clk 0:00:34]}  Rxd6 {[%clk 0:00:04]} 58. Rxd6+ {[%clk 0:00:35]}  Kxd6 {[%clk 0:00:05]} 59. Kxh7 {[%clk 0:00:35]}  Re6 {[%clk 0:00:05]} 60. Ra1 {[%clk 0:00:34]}  Kc5 {[%clk 0:00:05]} 61. Rc1+ {[%clk 0:00:34]}  Kb4 {[%clk 0:00:05]} 62. Rc8 {[%clk 0:00:34]}  a5 {[%clk 0:00:05]} 63. f4 {[%clk 0:00:23]}  a4 {[%clk 0:00:05]} 64. Ra8 {[%clk 0:00:22]}  a3 {[%clk 0:00:05]} 65. Kg7 {[%clk 0:00:23]}  Kb3 {[%clk 0:00:05]} 66. Kf7 {[%clk 0:00:24]}  Rc6 {[%clk 0:00:06]} 67. Rd8 {[%clk 0:00:20]}  a2 {[%clk 0:00:06]} 68. Rd3+ {[%clk 0:00:21]}  Kb2 {[%clk 0:00:06]} 69. Rf3 {[%clk 0:00:21]}  a1=Q {[%clk 0:00:06]} 70. Rf2+ {[%clk 0:00:22]}  Kb3 {[%clk 0:00:06]} 71. Rf3+ {[%clk 0:00:22]}  Kb4 {[%clk 0:00:07]} 72. Rg3 {[%clk 0:00:23]}  Qf6+ {[%clk 0:00:07]} 73. Kg8 {[%clk 0:00:23]}  Rc8+ {[%clk 0:00:07]} 74. Kh7 {[%clk 0:00:23]}  Rh8# {[%clk 0:00:08]} 0-1


[Site "https://www.chess.com"]

[Event "Titled Tuesday Blitz May 30 Late 2023"]
[White "Wang, Alexander J"]
[Black "LangesNasenhaar"]
[WhiteFideId "30955270"]
[WhiteElo "2264"]
[BlackElo "2444"]
[Result "0-1"]
[Round "06"]
[TimeControl "180+2"]
[Date "2023.05.31"]
[WhiteClock "0:00:07"]
[BlackClock "0:00:09"]

1. e4 {[%clk 0:03:00]}  d6 {[%clk 0:02:59]} 2. d4 {[%clk 0:02:59]}  Nf6 {[%clk 0:02:59]} 3. Nc3 {[%clk 0:02:56]}  Nbd7 {[%clk 0:03:00]} 4. Nf3 {[%clk 0:02:56]}  e5 {[%clk 0:03:00]} 5. dxe5 {[%clk 0:02:55]}  dxe5 {[%clk 0:03:01]} 6. Bc4 {[%clk 0:02:56]}  Be7 {[%clk 0:03:01]} 7. Bg5 {[%clk 0:02:52]}  c6 {[%clk 0:03:01]} 8. Bxf6 {[%clk 0:02:44]}  Bxf6 {[%clk 0:02:59]} 9. O-O {[%clk 0:02:44]}  b5 {[%clk 0:02:59]} 10. Bb3 {[%clk 0:02:42]}  O-O {[%clk 0:02:59]} 11. Qd6 {[%clk 0:02:35]}  Qb6 {[%clk 0:02:51]} 12. a4 {[%clk 0:02:21]}  b4 {[%clk 0:02:32]} 13. Na2 {[%clk 0:02:15]}  a5 {[%clk 0:02:24]} 14. Rad1 {[%clk 0:02:06]}  Nc5 {[%clk 0:02:24]} 15. Nxe5 {[%clk 0:01:51]}  Nxb3 {[%clk 0:02:15]} 16. cxb3 {[%clk 0:01:48]}  Be6 {[%clk 0:02:03]} 17. Nc1 {[%clk 0:01:28]}  Rfc8 {[%clk 0:01:33]} 18. Nd7 {[%clk 0:01:14]}  Bxd7 {[%clk 0:01:31]} 19. Qxd7 {[%clk 0:01:15]}  Bxb2 {[%clk 0:01:31]} 20. Nd3 {[%clk 0:01:09]}  Rd8 {[%clk 0:01:26]} 21. Qf5 {[%clk 0:01:04]}  Bd4 {[%clk 0:01:26]} 22. Ne5 {[%clk 0:01:00]}  Qc7 {[%clk 0:01:18]} 23. Nf3 {[%clk 0:00:56]}  Bc3 {[%clk 0:01:10]} 24. Ng5 {[%clk 0:00:55]}  g6 {[%clk 0:01:05]} 25. Qh3 {[%clk 0:00:54]}  h5 {[%clk 0:01:04]} 26. Nf3 {[%clk 0:00:43]}  Rxd1 {[%clk 0:00:56]} 27. Rxd1 {[%clk 0:00:42]}  Rd8 {[%clk 0:00:57]} 28. Rf1 {[%clk 0:00:39]}  Bg7 {[%clk 0:00:53]} 29. Ng5 {[%clk 0:00:32]}  Qe5 {[%clk 0:00:44]} 30. Qe3 {[%clk 0:00:26]}  Qc3 {[%clk 0:00:36]} 31. Qf4 {[%clk 0:00:22]}  Qf6 {[%clk 0:00:31]} 32. Qe3 {[%clk 0:00:18]}  Bh6 {[%clk 0:00:31]} 33. f4 {[%clk 0:00:19]}  Bxg5 {[%clk 0:00:31]} 34. fxg5 {[%clk 0:00:19]}  Qd4 {[%clk 0:00:32]} 35. Qxd4 {[%clk 0:00:19]}  Rxd4 {[%clk 0:00:32]} 36. Rc1 {[%clk 0:00:19]}  Rxe4 {[%clk 0:00:27]} 37. Rxc6 {[%clk 0:00:19]}  Re3 {[%clk 0:00:27]} 38. Rc5 {[%clk 0:00:19]}  Rxb3 {[%clk 0:00:28]} 39. Rxa5 {[%clk 0:00:19]}  Rb1+ {[%clk 0:00:27]} 40. Kf2 {[%clk 0:00:19]}  Rb2+ {[%clk 0:00:24]} 41. Kf3 {[%clk 0:00:18]}  Rb3+ {[%clk 0:00:23]} 42. Kf2 {[%clk 0:00:18]}  Ra3 {[%clk 0:00:24]} 43. Ra8+ {[%clk 0:00:16]}  Kg7 {[%clk 0:00:23]} 44. a5 {[%clk 0:00:16]}  b3 {[%clk 0:00:24]} 45. Rb8 {[%clk 0:00:16]}  Rxa5 {[%clk 0:00:24]} 46. Rxb3 {[%clk 0:00:15]}  Rxg5 {[%clk 0:00:24]} 47. g3 {[%clk 0:00:16]}  Rc5 {[%clk 0:00:24]} 48. Kg2 {[%clk 0:00:16]}  g5 {[%clk 0:00:25]} 49. Rf3 {[%clk 0:00:15]}  Kg6 {[%clk 0:00:25]} 50. Ra3 {[%clk 0:00:14]}  f6 {[%clk 0:00:25]} 51. Ra6 {[%clk 0:00:14]}  Rc3 {[%clk 0:00:24]} 52. Ra5 {[%clk 0:00:14]}  g4 {[%clk 0:00:24]} 53. Ra8 {[%clk 0:00:13]}  Rc2+ {[%clk 0:00:23]} 54. Kf1 {[%clk 0:00:13]}  h4 {[%clk 0:00:22]} 55. Kg1 {[%clk 0:00:05]}  h3 {[%clk 0:00:20]} 56. Ra4 {[%clk 0:00:04]}  f5 {[%clk 0:00:19]} 57. Rf4 {[%clk 0:00:02]}  Rg2+ {[%clk 0:00:16]} 58. Kh1 {[%clk 0:00:01]}  Kf6 {[%clk 0:00:15]} 59. Ra4 {[%clk 0:00:01]}  Rf2 {[%clk 0:00:15]} 60. Kg1 {[%clk 0:00:02]}  Rf3 {[%clk 0:00:16]} 61. Ra6+ {[%clk 0:00:02]}  Kg5 {[%clk 0:00:16]} 62. Ra4 {[%clk 0:00:02]}  Re3 {[%clk 0:00:16]} 63. Kf2 {[%clk 0:00:02]}  Rc3 {[%clk 0:00:16]} 64. Kg1 {[%clk 0:00:02]}  Rc2 {[%clk 0:00:12]} 65. Rf4 {[%clk 0:00:01]}  Kf6 {[%clk 0:00:11]} 66. Rf2 {[%clk 0:00:02]}  Rxf2 {[%clk 0:00:09]} 67. Kxf2 {[%clk 0:00:03]}  Ke6 {[%clk 0:00:09]} 68. Ke3 {[%clk 0:00:03]}  Ke5 {[%clk 0:00:10]} 69. Ke2 {[%clk 0:00:03]}  Ke4 {[%clk 0:00:10]} 70. Kf2 {[%clk 0:00:02]}  Kd3 {[%clk 0:00:10]} 71. Kf1 {[%clk 0:00:03]}  Ke3 {[%clk 0:00:10]} 72. Ke1 {[%clk 0:00:04]}  f4 {[%clk 0:00:08]} 73. gxf4 {[%clk 0:00:03]}  g3 {[%clk 0:00:08]} 74. hxg3 {[%clk 0:00:01]}  h2 {[%clk 0:00:08]} 75. Kd1 {[%clk 0:00:02]}  h1=Q+ {[%clk 0:00:08]} 76. Kc2 {[%clk 0:00:02]}  Qe4+ {[%clk 0:00:08]} 77. Kc3 {[%clk 0:00:03]}  Qf3 {[%clk 0:00:08]} 78. Kc4 {[%clk 0:00:04]}  Qxg3 {[%clk 0:00:08]} 79. Kc5 {[%clk 0:00:05]}  Qxf4 {[%clk 0:00:09]} 80. Kd5 {[%clk 0:00:06]}  Qd4+ {[%clk 0:00:09]} 81. Ke6 {[%clk 0:00:07]}  Ke4 {[%clk 0:00:09]} 0-1


[Site "https://www.chess.com"]